fUST/lending_fUST_20240619
["ID","MTS","AMOUNT","RATE_DAILY","PERIOD"]
[329879540,1718782261750,-1463.77938873,0.00046,4]
[329879541,1718782261758,-154.81422293,0.00046,68]
[329879542,1718782261767,-154.81422293,0.00046,4]
[329879543,1718782261778,-8384.90694834,0.00046,4]
[329879544,1718782261786,-937.85782819,0.00046,4]
[329879545,1718782261795,-150.80395486,0.00046786,2]
[329879546,1718782261804,-20542.15408917,0.00047,4]
[329879547,1718782261813,-152.0,0.00048,60]
[329879548,1718782261822,-260.0,0.00048,2]
[329879549,1718782261831,-1509.75734894,0.00049068,19]
[329879550,1718782261841,-1075.17,0.00049289,6]
[329879551,1718782261850,-500.0,0.00049315,31]
[329879552,1718782261859,-500.0,0.00049315,31]
[329879553,1718782261868,-500.0,0.00049315,31]
[329879554,1718782261878,-500.0,0.00049315,31]
[329879555,1718782261887,-500.0,0.00049315,31]
[329879556,1718782261897,-201.89478846,0.00049315,31]
[329879557,1718782261906,-300.21053205,0.00049315,31]
[329879558,1718782261915,-269.11188944,0.00049315,120]
[329879559,1718782261925,-151.0,0.00049589,120]
[329879560,1718782261935,-200.0,0.0004994,120]
[329879561,1718782261943,-1040.4,0.00049974,6]
[329879562,1718782261953,-154.9690062,0.0005,30]
[329879563,1718782261963,-515.37788236,0.0005,10]
[329879564,1718782261972,-571.58974663,0.0005,7]
[329879565,1718782261984,-189.53420824,0.0005,30]
[329879566,1718782262084,-254.52568194,0.0005,120]
[329879567,1718782262096,-255.42841331,0.0005,120]
[329879568,1718782262105,-1000.0,0.0005,120]
[329879569,1718782262115,-400.0,0.0005,30]
[329879570,1718782262124,-195.509438,0.0005012,2]
[329879571,1718782262134,-151.0,0.00050274,120]
[329879572,1718782262143,-300.0,0.000503,15]
[329879573,1718782262152,-150.0,0.000503,15]
[329879574,1718782262163,-1000.0,0.000506,15]
[329879575,1718782262172,-1000.0,0.000506,15]
[329879576,1718782262182,-483.75,0.00050659,6]
[329879577,1718782262191,-151.0,0.00050959,120]
[329879578,1718782262201,-3000.0,0.00051,85]
[329879579,1718782262210,-3000.0,0.0005101,85]
[329879580,1718782262219,-3000.0,0.0005102,85]
[329879581,1718782262228,-3000.0,0.0005103,85]
[329879582,1718782262237,-3000.0,0.0005104,85]
[329879583,1718782262247,-3000.0,0.0005105,85]
[329879584,1718782262256,-3000.0,0.0005106,85]
[329879585,1718782262265,-3000.0,0.0005107,85]
[329879586,1718782262274,-4783.989544,0.0005108,85]
[329879587,1718782262286,-4273.6410009,0.00051233,60]
[329879588,1718782262296,-750.0,0.00051593,2]
[329879589,1718782262305,-151.0,0.00051644,120]
[329879590,1718782262314,-168.05109018,0.00052054,2]
[329879591,1718782262323,-151.0,0.00052329,120]
[329879592,1718782262333,-151.0,0.00053014,120]
[329879593,1718782262343,-279.36103171,0.00053305,2]
[329879594,1718782262352,-151.0,0.00053644,120]
[329879595,1718782262361,-151.0,0.00053699,120]
[329879596,1718782262371,-151.0,0.00054384,120]
[329879597,1718782262380,-1000.0,0.000545,2]
[329879598,1718782262390,-723.58,0.00054794,120]
[329879599,1718782262399,-723.58,0.00054794,120]
[329879600,1718782262408,-723.58,0.00054794,120]
[329879601,1718782262418,-723.58,0.00054794,120]
[329879602,1718782262427,-723.58,0.00054794,120]
[329879603,1718782262436,-723.58,0.00054794,120]
[329879604,1718782262445,-723.58,0.00054794,120]
[329879605,1718782262455,-723.58,0.00054794,120]
[329879606,1718782262464,-723.58,0.00054794,120]
[329879607,1718782262472,-723.58,0.00054794,120]
[329879608,1718782262482,-723.58,0.00054794,120]
[329879609,1718782262491,-723.58,0.00054794,120]
[329879610,1718782262500,-723.58,0.00054794,120]
[329879611,1718782262509,-723.58,0.00054794,120]
[329879612,1718782262518,-723.58,0.00054794,120]
[329879613,1718782262530,-723.58,0.00054794,120]
[329879614,1718782262539,-723.58,0.00054794,120]
[329879615,1718782262548,-723.58,0.00054794,120]
[329879616,1718782262557,-723.58,0.00054794,120]
[329879617,1718782262567,-723.58,0.00054794,120]
[329879618,1718782262576,-723.58,0.00054794,120]
[329879619,1718782262586,-723.58,0.00054794,120]
[329879620,1718782262595,-723.58,0.00054794,120]
[329879621,1718782262603,-723.72685112,0.00054794,120]
[329879622,1718782262613,-770.08262676,0.00054794,2]
[329879623,1718782262622,-500.0,0.00054794,120]
[329879624,1718782262631,-500.0,0.00054794,120]
[329879625,1718782262641,-500.0,0.00054794,120]
[329879626,1718782262650,-500.0,0.00054794,120]
[329879627,1718782262659,-500.0,0.00054794,120]
[329879628,1718782262668,-500.0,0.00054794,120]
[329879629,1718782262678,-500.0,0.00054794,120]
[329879630,1718782262687,-500.0,0.00054794,120]
[329879631,1718782262697,-500.0,0.00054794,120]
[329879632,1718782262706,-500.0,0.00054794,120]
[329879633,1718782262715,-500.0,0.00054794,120]
[329879634,1718782262725,-500.0,0.00054794,120]
[329879635,1718782262734,-500.0,0.00054794,120]
[329879636,1718782262743,-500.0,0.00054794,120]
[329879637,1718782262752,-500.0,0.00054794,120]
[329879638,1718782262761,-500.0,0.00054794,120]
[329879639,1718782262771,-500.0,0.00054794,120]
[329879640,1718782262784,-500.0,0.00054794,120]
[329879641,1718782262794,-500.0,0.00054794,120]
[329879642,1718782262803,-500.0,0.00054794,120]
[329879643,1718782262812,-365.32919103,0.00054794,120]
[329879644,1718782262822,-500.0,0.00054794,2]
[329879645,1718782262831,-500.0,0.00054794,2]
[329879646,1718782262840,-287.34901217,0.00054794,2]
[329879647,1718782262850,-500.0,0.00054794,120]
[329879648,1718782262860,-500.0,0.00054794,120]
[329879649,1718782262869,-500.0,0.00054794,120]
[329879650,1718782262879,-500.0,0.00054794,120]
[329879651,1718782262888,-500.0,0.00054794,120]
[329879652,1718782262897,-500.0,0.00054794,120]
[329879653,1718782262907,-646.74981045,0.00054794,120]
[329879654,1718782262917,-2000.0,0.00054794,120]
[329879655,1718782262926,-2000.0,0.00054794,120]
[329879656,1718782262936,-2000.0,0.00054794,120]
[329879657,1718782262945,-2000.0,0.00054794,120]
[329879658,1718782262955,-2000.0,0.00054794,120]
[329879659,1718782262968,-2000.0,0.00054794,120]
[329879660,1718782262977,-2000.0,0.00054794,120]
[329879661,1718782262987,-2000.0,0.00054794,120]
[329879662,1718782262996,-2000.0,0.00054794,120]
[329879663,1718782263006,-2000.0,0.00054794,120]
[329879664,1718782263017,-2000.0,0.00054794,120]
[329879665,1718782263026,-2000.0,0.00054794,120]
[329879666,1718782263036,-2000.0,0.00054794,120]
[329879667,1718782263047,-2000.0,0.00054794,120]
[329879668,1718782263058,-2000.0,0.00054794,120]
[329879669,1718782263067,-1107.28770966,0.00054794,120]
[329879670,1718782263077,-268.3,0.00054795,120]
[329879671,1718782263086,-153.24428795,0.00054795,120]
[329879672,1718782263095,-153.24428795,0.00054795,120]
[329879673,1718782263105,-153.24428795,0.00054795,120]
[329879674,1718782263114,-153.24428795,0.00054795,120]
[329879675,1718782263124,-153.24428795,0.00054795,120]
[329879676,1718782263133,-153.24428795,0.00054795,120]
[329879677,1718782263142,-153.74,0.00054795,120]
[329879678,1718782263151,-223.95167968,0.00054795,120]
[329879679,1718782263160,-223.95167968,0.00054795,120]
[329879680,1718782263170,-223.95167968,0.00054795,120]
[329879681,1718782263179,-223.95167968,0.00054795,120]
[329879682,1718782263188,-223.95167968,0.00054795,120]
[329879683,1718782263199,-223.95167968,0.00054795,120]
[329879684,1718782263208,-223.95167968,0.00054795,120]
[329879685,1718782263217,-223.95167968,0.00054795,120]
[329879686,1718782263226,-223.95167968,0.00054795,120]
[329879687,1718782263236,-223.95167968,0.00054795,120]
[329879688,1718782263245,-223.95167968,0.00054795,120]
[329879689,1718782263255,-223.95167968,0.00054795,120]
[329879690,1718782263264,-223.95167968,0.00054795,120]
[329879691,1718782263273,-223.95167968,0.00054795,120]
[329879692,1718782263285,-223.95167968,0.00054795,120]
[329879693,1718782263295,-223.95167968,0.00054795,120]
[329879694,1718782263305,-223.95167968,0.00054795,120]
[329879695,1718782263314,-223.95167968,0.00054795,120]
[329879696,1718782263323,-223.95167968,0.00054795,120]
[329879697,1718782263332,-224.45,0.00054795,120]
[329879698,1718782263342,-895.88171872,0.00054795,120]
[329879699,1718782263352,-895.88171872,0.00054795,120]
[329879700,1718782263362,-895.88171872,0.00054795,120]
[329879701,1718782263370,-895.88171872,0.00054795,120]
[329879702,1718782263379,-895.88171872,0.00054795,120]
[329879703,1718782263389,-895.88171872,0.00054795,120]
[329879704,1718782263398,-895.88171872,0.00054795,120]
[329879705,1718782263407,-895.88171872,0.00054795,120]
[329879706,1718782263416,-895.88171872,0.00054795,120]
[329879707,1718782263425,-895.88171872,0.00054795,120]
[329879708,1718782263434,-895.88171872,0.00054795,120]
[329879709,1718782263443,-895.88171872,0.00054795,120]
[329879710,1718782263453,-895.88171872,0.00054795,120]
[329879711,1718782263462,-895.88171872,0.00054795,120]
[329879712,1718782263471,-895.88171872,0.00054795,120]
[329879713,1718782263480,-895.88171872,0.00054795,120]
[329879714,1718782263489,-895.88171872,0.00054795,120]
[329879715,1718782263498,-895.88171872,0.00054795,120]
[329879716,1718782263507,-895.88171872,0.00054795,120]
[329879717,1718782263517,-896.38,0.00054795,120]
[329879718,1718782263528,-475.38047629,0.00054795,120]
[329879719,1718782263538,-475.38047629,0.00054795,120]
[329879720,1718782263548,-475.38047629,0.00054795,120]
[329879721,1718782263558,-500.0,0.00054795,120]
[329879722,1718782263567,-500.0,0.00054795,120]
[329879723,1718782263577,-566.96,0.00054795,120]
[329879724,1718782263586,-500.0,0.00054795,120]
[329879725,1718782263595,-500.0,0.00054795,120]
[329879726,1718782263604,-507.44,0.00054795,120]
[329879727,1718782263613,-500.0,0.00054795,120]
[329879728,1718782263622,-500.0,0.00054795,120]
[329879729,1718782263631,-500.0,0.00054795,120]
[329879730,1718782263640,-500.0,0.00054795,120]
[329879731,1718782263649,-1998.29714328,0.00055,120]
[329879732,1718782263658,-151.0,0.00055068,120]
[329879733,1718782263667,-151.0,0.00055753,120]
[329879734,1718782263676,-4273.6410009,0.00056233,120]
[329879735,1718782263685,-195.509438,0.00056324,120]
[329879736,1718782263694,-151.0,0.00056438,120]
[329879737,1718782263703,-248.0,0.000566,120]
[329879738,1718782263711,-984.7866756,0.00056847,28]
[329879739,1718782263721,-1771.34598546,0.00057,120]
[329879740,1718782263730,-151.0,0.00057123,120]
[329879741,1718782263739,-750.0,0.00057693,2]
[329879742,1718782263747,-151.0,0.00057808,120]
[329879743,1718782263756,-151.0,0.00058493,120]
[329879744,1718782263765,-5000.0,0.000585,60]
[329879745,1718782263774,-1000.0,0.00059,59]
[329879746,1718782263786,-553.69588146,0.00059054,120]
[329879747,1718782263795,-151.0,0.00059178,120]
[329879748,1718782263804,-151.0,0.00059863,120]
[329879749,1718782263812,-160.0,0.0006,60]
[329879750,1718782263821,-677.79023336,0.0006,12]
[329879751,1718782263830,-1000.0,0.0006,120]
[329879752,1718782263839,-3998.84656325,0.0006,120]
[329879753,1718782263849,-5000.0,0.0006,120]
[329879754,1718782263858,-1000.0,0.0006,120]
[329879755,1718782263867,-1000.0,0.0006,120]
[329879756,1718782263876,-1000.0,0.0006,120]
[329879757,1718782263885,-500.0,0.0006,120]
[329879758,1718782263895,-1998.23146228,0.0006,120]
[329879759,1718782263903,-151.0,0.00060548,120]
[329879760,1718782263915,-150.0,0.00061,120]
[329879761,1718782263924,-151.0,0.00061233,120]
[329879762,1718782263933,-4273.6410009,0.00061233,120]
[329879763,1718782263942,-346.567131,0.000616,120]
[329879764,1718782263951,-1000.0,0.00061649,30]
[329879765,1718782263961,-1000.0,0.00061649,30]
[329879766,1718782263970,-1000.0,0.00061649,30]
[329879767,1718782263983,-151.0,0.00061918,120]
[329879768,1718782263992,-195.509438,0.00062529,120]
[329879769,1718782264001,-151.0,0.00062603,120]
[329879770,1718782264011,-5000.0,0.000629,60]
[329879771,1718782264020,-151.0,0.00063288,120]
[329879772,1718782264032,-750.0,0.00063792,2]
[329879773,1718782264041,-151.0,0.00063973,120]
[329879774,1718782264052,-1000.0,0.000642,120]
[329879775,1718782264062,-8345.49916907,0.000644,120]
[329879776,1718782264071,-151.0,0.00064658,120]
[329879777,1718782264080,-4487.99847648,0.000649,120]
[329879778,1718782264089,-1998.23146228,0.00065,120]
[329879779,1718782264098,-151.0,0.00065342,120]
[329879780,1718782264108,-151.0,0.00066027,120]
[329879781,1718782264117,-4273.6410009,0.00066233,120]
[329879782,1718782264126,-151.0,0.00066712,120]
[329879783,1718782264136,-654.52828457,0.000669,120]
[329879784,1718782264146,-151.0,0.00067288,120]
[329879785,1718782264155,-151.0,0.00067397,120]
[329879786,1718782264164,-2440.51200835,0.00068,60]
[329879787,1718782264173,-151.0,0.00068082,120]
[329879788,1718782264182,-195.509438,0.00068734,120]
[329879789,1718782264274,-151.0,0.00068767,120]
[329879790,1718782264287,-1000.0,0.00068923,120]
[329879791,1718782264297,-3000.0,0.00069,120]
[329879792,1718782264306,-3000.0,0.0006901,120]
[329879793,1718782264315,-3000.0,0.0006902,120]
[329879794,1718782264324,-3000.0,0.0006903,120]
[329879795,1718782264334,-5270.393726,0.0006904,120]
[329879796,1718782264343,-151.0,0.00069452,120]
[329879797,1718782264352,-750.0,0.00069892,120]
[329879798,1718782264362,-5000.0,0.000699,120]
[329879799,1718782264371,-1000.0,0.0007,120]
[329879800,1718782264380,-1998.23146228,0.0007,120]
[329879801,1718782264389,-5048.0,0.0007,120]
[329879802,1718782264398,-151.0,0.00070137,120]
[329879803,1718782264408,-180.96474583,0.00070179,4]
[329879804,1718782264417,-151.0,0.00070822,120]
[329879805,1718782264426,-4273.6410009,0.00071233,120]
[329879806,1718782264436,-151.0,0.00071507,120]
[329879807,1718782264445,-685.18,0.00072,120]
[329879808,1718782264454,-151.0,0.00072192,120]
[329879809,1718782264463,-151.0,0.00072877,120]
[329879810,1718782264472,-5000.0,0.000729,120]
[329879811,1718782264482,-2500.0,0.00073,120]
[329879812,1718782264491,-151.0,0.00073562,120]
[329879813,1718782264500,-1000.0,0.000738,120]
[329879814,1718782264509,-151.0,0.00074247,120]
[329879815,1718782264518,-5000.0,0.000749,120]
[329879816,1718782264530,-151.0,0.00074932,120]
[329879817,1718782264539,-195.509438,0.00074939,120]
[329879818,1718782264548,-1000.0,0.00075,2]
[329879819,1718782264558,-1998.87904822,0.00075,120]
[329879820,1718782264567,-9999.999999,0.00075444,120]
[329879821,1718782264576,-151.0,0.00075616,120]
[329879822,1718782264585,-750.0,0.00075991,120]
[329879823,1718782264595,-4273.6400009,0.00076233,120]
[329879824,1718782264605,-151.0,0.00076301,120]
[329879825,1718782264614,-151.0,0.00076986,120]
[329879826,1718782264623,-151.0,0.00077671,120]
[329879827,1718782264632,-1218.87108709,0.000779,120]
[329879828,1718782264642,-19690.748043,0.00078,90]
[329879829,1718782264651,-10069.20704,0.00078,90]
[329879830,1718782264661,-47254.483518,0.00078,60]
[329879831,1718782264670,-151.0,0.00078356,120]
[329879832,1718782264680,-63563.8344519,0.000788,120]
[329879833,1718782264689,-9304.11105084,0.00079,90]
[329879834,1718782264699,-151.0,0.00079041,120]
[329879835,1718782264708,-480.0,0.00079452,120]
[329879836,1718782264717,-151.0,0.00079726,120]
[329879837,1718782264727,-663.06551169,0.0008,50]
[329879838,1718782264736,-326905.0,0.0008,120]
[329879839,1718782264746,-1000.0,0.0008,120]
[329879840,1718782264755,-1998.87904822,0.0008,120]
[329879841,1718782264764,-1000.0,0.0008,120]
[329879842,1718782264773,-62381.72577974,0.0008,120]
[329879843,1718782264786,-4105.17223218,0.0008,2]
[329879844,1718782264796,-2931.78575545,0.0008,120]
[329879845,1718782264804,-12868.0,0.0008,120]
[329879846,1718782264814,-1918.932636,0.0008,120]
[329879847,1718782264823,-151.0,0.00080411,120]
[329879848,1718782264832,-5000.0,0.000809,120]
[329879849,1718782264842,-151.0,0.00080932,120]
[329879850,1718782264851,-151.0,0.00081096,120]
[329879851,1718782264861,-195.509438,0.00081144,120]
[329879852,1718782264870,-151.0,0.00081781,120]
[329879853,1718782264879,-750.0,0.00082091,120]
[329879854,1718782264889,-5000.0,0.00082191,120]
[329879855,1718782264898,-500.0,0.00082191,120]
[329879856,1718782264907,-500.0,0.00082191,120]
[329879857,1718782264916,-500.0,0.00082191,120]
[329879858,1718782264925,-500.0,0.00082191,120]
[329879859,1718782264934,-500.0,0.00082191,120]
[329879860,1718782264944,-500.0,0.00082191,120]
[329879861,1718782264954,-500.0,0.00082191,120]
[329879862,1718782264966,-500.0,0.00082191,120]
[329879863,1718782264976,-500.0,0.00082191,120]
[329879864,1718782264986,-212.08625225,0.00082191,120]
[329879865,1718782264995,-151.0,0.00082466,120]
[329879866,1718782265006,-151.0,0.00083151,120]
[329879867,1718782265015,-151.0,0.00083836,120]
[329879868,1718782265024,-151.0,0.00084521,120]
[329879869,1718782265037,-5000.0,0.000849,120]
[329879870,1718782265048,-1998.87904822,0.00085,120]
[329879871,1718782265058,-151.0,0.00085205,120]
[329879872,1718782265067,-151.0,0.0008589,120]
[329879873,1718782265077,-151.0,0.00086575,120]
[329879874,1718782265086,-151.0,0.0008726,120]
[329879875,1718782265095,-195.509438,0.00087348,120]
[329879876,1718782265104,-151.0,0.00087945,120]
[329879877,1718782265113,-750.0,0.0008819,120]
[329879878,1718782265122,-714.0,0.00088499,90]
[329879879,1718782265131,-1000.0,0.00088499,90]
[329879880,1718782265140,-151.0,0.0008863,120]
[329879881,1718782265149,-151.0,0.00089315,120]
[329879882,1718782265158,-5000.0,0.000895,120]
[329879883,1718782265167,-509.45,0.0009,90]
[329879884,1718782265176,-1000.0,0.0009,120]
[329879885,1718782265185,-5000.0,0.0009,120]
[329879886,1718782265194,-1998.28562828,0.0009,120]
[329879887,1718782265203,-369.0,0.0009,120]
[329879888,1718782265212,-26868.0,0.000928,120]
[329879889,1718782265221,-195.509438,0.00093553,120]
[329879890,1718782265230,-2500.0,0.000939,120]
[329879891,1718782265240,-1000.0,0.00094189,120]
[329879892,1718782265249,-750.0,0.0009429,120]
[329879893,1718782265258,-151.0,0.00094575,120]
[329879894,1718782265267,-6060.32971671,0.0009488,60]
[329879895,1718782265277,-1998.28562828,0.00095,120]
[329879896,1718782265289,-984.7866756,0.00097356,28]
[329879897,1718782265298,-6958.42875093,0.000975,30]
[329879898,1718782265307,-195.509438,0.00099758,120]
[329879899,1718782265316,-1000.0,0.00099999,120]
[329879900,1718782265325,-1117.30167553,0.001,120]
[329879901,1718782265335,-44355.37414256,0.001,120]
[329879902,1718782265344,-1000.0,0.001,2]
[329879903,1718782265353,-1000.0,0.001,120]
[329879904,1718782265362,-5000.0,0.001,120]
[329879905,1718782265371,-619.71615373,0.001,2]
[329879906,1718782265380,-1998.28562828,0.001,120]
[329879907,1718782265389,-2596.21296271,0.001,120]
[329879908,1718782265398,-151.0,0.001,120]
[329879909,1718782265407,-182.076,0.001,120]
[329879910,1718782265416,-182.077,0.001,120]
[329879911,1718782265426,-182.076,0.001,120]
[329879912,1718782265435,-750.0,0.00100389,120]
[329879913,1718782265444,-900.0,0.001035,90]
[329879914,1718782265453,-217.157695,0.00105268,7]
[329879915,1718782265462,-195.509438,0.00105963,120]
[329879916,1718782265471,-750.0,0.00106489,120]
[329879917,1718782265481,-151.0,0.00108219,120]
[329879918,1718782265490,-5000.0,0.00109589,120]
[329879919,1718782265499,-195.509438,0.00112167,120]
[329879920,1718782265508,-750.0,0.00112588,120]
[329879921,1718782265517,-1000.0,0.00115348,90]
[329879922,1718782265526,-195.509438,0.00118372,120]
[329879923,1718782265538,-750.0,0.00118688,120]
[329879924,1718782265547,-5000.0,0.00119,120]
[329879925,1718782265557,-151.0,0.00121863,120]
[329879926,1718782265566,-195.509438,0.00124577,120]
[329879927,1718782265575,-750.0,0.00124788,120]
[329879928,1718782265583,-1000.0,0.0012511,120]
[329879929,1718782265592,-195.509438,0.00130782,120]
[329879930,1718782265602,-750.0,0.00130887,120]
[329879931,1718782265610,-151.0,0.00135507,120]
[329879932,1718782265619,-5000.0,0.00136986,120]
[329879933,1718782265628,-195.509438,0.00136986,120]
[329879934,1718782265638,-750.0,0.00136987,120]
[329879935,1718782265647,-984.7866756,0.00137865,28]
[329879936,1718782265655,-5000.0,0.00139,120]
[329879937,1718782265665,-440.0,0.00142112,120]
[329879938,1718782265674,-1000.0,0.00142197,90]
[329879939,1718782265683,-151.0,0.00149151,120]
[329879940,1718782265692,-198593.15074137,0.0015,120]
[329879941,1718782265700,-5000.0,0.0015,120]
[329879942,1718782265709,-619.71615373,0.0015,2]
[329879943,1718782265719,-190.1841348,0.0015,120]
[329879944,1718782265728,-1998.28562828,0.0015,120]
[329879945,1718782265738,-667.1448692,0.0015,120]
[329879946,1718782265747,-1000.0,0.00150684,7]
[329879947,1718782265756,-1000.0,0.00150684,7]
[329879948,1718782265765,-1000.0,0.00150684,7]
[329879949,1718782265775,-1000.0,0.00150684,7]
[329879950,1718782265786,-1000.0,0.00150684,7]
[329879951,1718782265794,-1000.0,0.00150684,7]
[329879952,1718782265803,-1000.0,0.00150684,7]
[329879953,1718782265812,-1000.0,0.00150684,7]
[329879954,1718782265821,-1000.0,0.00150684,7]
[329879955,1718782265830,-1000.0,0.00150684,7]
[329879956,1718782265839,-1000.0,0.00150684,7]
[329879957,1718782265849,-1000.0,0.00150684,7]
[329879958,1718782265858,-1000.0,0.00150684,7]
[329879959,1718782265867,-1000.0,0.00150684,7]
[329879960,1718782265876,-1000.0,0.00150684,7]
[329879961,1718782265886,-1000.0,0.00150684,7]
[329879962,1718782265895,-973.14431802,0.00150684,7]
[329879963,1718782265904,-260.589234,0.00157902,30]
[329879964,1718782265914,-5000.0,0.00159,120]
[329879965,1718782265923,-151.0,0.00162795,120]
[329879966,1718782265932,-5000.0,0.00164383,120]
[329879967,1718782265942,-1000.0,0.00169047,90]
[329879968,1718782265951,-151.0,0.00176438,120]
[329879969,1718782265961,-984.7866756,0.00178373,28]
[329879970,1718782265971,-1000.0,0.0017842,120]
[329879971,1718782265984,-5000.0,0.00179,120]
[329879972,1718782265993,-5000.0,0.0018,120]
[329879973,1718782266002,-26868.0,0.00188,120]
[329879974,1718782266011,-26868.0,0.00188,120]
[329879975,1718782266022,-15049.65,0.00188,120]
[329879976,1718782266034,-5000.0,0.0019,7]
[329879977,1718782266043,-151.0,0.00190082,120]
[329879978,1718782266053,-5000.0,0.0019178,120]
[329879979,1718782266065,-1490.57477468,0.00195,120]
[329879980,1718782266075,-5000.0,0.00195,120]
[329879981,1718782266084,-1000.0,0.00195896,90]
[329879982,1718782266093,-12868.0,0.00198,120]
[329879983,1718782266103,-684.17,0.0019998,35]
[329879984,1718782266112,-606.19,0.0019998,35]
[329879985,1718782266121,-682.0,0.0019999,35]
[329879986,1718782266130,-606.0,0.0019999,35]
[329879987,1718782266139,-1000.0,0.002,120]
[329879988,1718782266148,-600.0,0.002,120]
[329879989,1718782266158,-1000.0,0.002,120]
[329879990,1718782266167,-1000.0,0.002,120]
[329879991,1718782266176,-5000.0,0.002,120]
[329879992,1718782266262,-1998.28562828,0.002,120]
[329879993,1718782266272,-151.0,0.00203726,120]
[329879994,1718782266286,-380.0,0.0020813,120]
[329879995,1718782266297,-151.0,0.0021737,120]
[329879996,1718782266306,-5000.0,0.00219178,120]
[329879997,1718782266315,-5000.0,0.0022,120]
[329879998,1718782266326,-442.27077016,0.0022,2]
[329879999,1718782266337,-1000.0,0.00222745,120]
[329880000,1718782266347,-2500.0,0.00229,120]
[329880001,1718782266356,-12868.0,0.0023,120]
[329880002,1718782266366,-151.0,0.00231014,120]
[329880003,1718782266385,-1000.0,0.00243,120]
[329880004,1718782266396,-155.00292896,0.00244032,120]
[329880005,1718782266405,-151.0,0.00244658,120]
[329880006,1718782266415,-2634.0,0.00244775,89]
[329880007,1718782266425,-5000.0,0.00246575,120]
[329880008,1718782266435,-1000.0,0.00249595,120]
[329880009,1718782266444,-1000.0,0.00249999,120]
[329880010,1718782266454,-200.0,0.0025,120]
[329880011,1718782266464,-5000.0,0.0025,120]
[329880012,1718782266473,-1998.29421528,0.0025,120]
[329880013,1718782266483,-1000.0,0.0025,120]
[329880014,1718782266493,-12868.0,0.0025,120]
[329880015,1718782266503,-151.0,0.00258301,120]
[329880016,1718782266513,-1000.0,0.0026175,120]
[329880017,1718782266522,-2500.0,0.00265,120]
[329880018,1718782266534,-1500.0,0.0027,30]
[329880019,1718782266543,-151.0,0.00271945,120]
[329880020,1718782266553,-26868.0,0.002728,120]
[329880021,1718782266562,-1000.0,0.00273972,120]
[329880022,1718782266572,-1000.0,0.00273972,120]
[329880023,1718782266582,-1000.0,0.00273972,120]
[329880024,1718782266591,-527.831097,0.00273972,120]
[329880025,1718782266600,-5000.0,0.00273972,120]
[329880026,1718782266610,-300.0,0.00276427,120]
[329880027,1718782266619,-1000.0,0.00276444,120]
[329880028,1718782266629,-2000.0,0.0028,120]
[329880029,1718782266639,-200.0,0.0028,60]
[329880030,1718782266648,-1000.0,0.00283,120]
[329880031,1718782266658,-286.0,0.0028358,120]
[329880032,1718782266667,-151.0,0.00285589,120]
[329880033,1718782266677,-8918.51408104,0.00288,120]
[329880034,1718782266687,-216428.38568045,0.00288,120]
[329880035,1718782266696,-10125.67581409,0.00289,120]
[329880036,1718782266706,-1257.75843831,0.0029,120]
[329880037,1718782266716,-10682.9352623,0.0029,120]
[329880038,1718782266725,-5000.0,0.0029,120]
[329880039,1718782266735,-2500.0,0.00294,120]